bitfinex-derivatives/quotes_ETHF0:USTF0_20240925
["timestamp","ask_amount","ask_price","bid_price","bid_amount"]
[1727284875995,1.49323023,2594.4,2594.3,0.38547]
[1727284876184,4.70103023,2594.5,2594.4,0.38546]
[1727284876385,3.59326,2594.5,2594.3,0.38547]
[1727284876584,3.2078,2594.5,2594.4,0.38546]
[1727284876989,1.49323023,2594.6,2594.5,0.38545]
[1727284877190,2.78933023,2594.7,2594.6,0.38543]
[1727284877589,1.2961,2594.7,2594.6,0.38543]
[1727284877787,2.78933023,2594.7,2594.6,0.38543]
[1727284878597,2.98218359,2594.7,2594.6,0.38543]
[1727284878996,2.98218333,2594.7,2594.6,0.38543]
[1727284879186,2.78933023,2594.7,2594.6,0.38543]
[1727284879584,2.78933023,2594.7,2594.5,0.38544]
[1727284879784,2.78933023,2594.7,2594.4,0.38545]
[1727284879785,0.38545,2594.5,2594.4,0.38545]
[1727284880086,0.38546,2594.4,2594.3,0.38546]
[1727284881095,1.87867023,2594.6,2594.5,0.38545]
[1727284881299,1.49323023,2594.6,2594.5,0.38545]
[1727284881487,3.28727506,2594.7,2594.6,0.38543]
[1727284881488,2.78933023,2594.7,2594.6,0.38543]
[1727284881686,2.98218014,2594.7,2594.6,0.38543]
[1727284881888,3.17475023,2594.7,2594.6,0.38543]
[1727284882291,0.38544,2594.6,2594.5,0.38543]
[1727284882485,1.87947505,2594.6,2594.5,0.38543]
[1727284882797,0.57829966,2594.6,2594.5,0.38543]
[1727284883195,2.07283449,2594.6,2594.5,0.38543]
[1727284883395,0.57829966,2594.6,2594.5,0.38543]
[1727284883794,1.68773053,2594.6,2594.5,0.38543]
[1727284884293,0.19285966,2594.6,2594.5,0.38543]
[1727284884599,1.68804834,2594.6,2594.5,0.38543]
[1727284884798,0.57828966,2594.6,2594.5,0.38543]
[1727284884985,0.19285966,2594.6,2594.5,0.38543]
[1727284885185,0.19285966,2594.6,2594.5,0.38545]
[1727284885186,2.25979124,2594.6,2594.5,0.38545]
[1727284885391,0.96362,2594.5,2593.9,4.5158]
[1727284885593,1.9933831,2594.2,2594.0,0.3855]
[1727284885793,0.3855,2594.1,2594.0,0.3855]
[1727284885997,0.57835966,2594.1,2594.0,0.3855]
[1727284886300,0.57835966,2594.1,2593.9,4.5158]
[1727284886301,0.38552,2594.0,2593.9,3.2078]
[1727284886496,0.57841027,2594.0,2593.9,3.2078]
[1727284886703,0.57841027,2594.0,2593.9,3.59333]
[1727284886902,0.57841027,2594.0,2593.9,3.2078]
[1727284886903,3.53560337,2594.0,2593.9,3.2078]
[1727284887197,1.54222027,2594.0,2593.9,3.2078]
[1727284887503,5.71418087,2594.0,2593.9,3.2078]
[1727284887692,4.36485087,2594.0,2593.9,3.59333]
[1727284887893,2.18495358,2594.0,2593.9,3.59333]
[1727284888292,1.99206331,2594.0,2593.9,3.59333]
[1727284888702,2.18495358,2594.0,2593.9,8.41237]
[1727284888901,1.99206331,2594.2,2593.9,17.36684]
[1727284889091,1.49411074,2594.1,2594.0,6.16834]
[1727284889296,1.49411074,2594.2,2594.1,2.31304]
[1727284889500,1.49411074,2594.2,2594.1,15.37604]
[1727284889703,2.49172888,2594.5,2594.1,15.37604]
[1727284889704,1.49411074,2594.5,2594.4,2.31278]
[1727284889907,1.49411074,2594.6,2594.5,1.34907]
[1727284890395,1.49411074,2594.7,2594.5,12.16709]
[1727284890594,1.49411074,2594.8,2594.7,0.38542]
[1727284890793,1.49411074,2594.8,2594.7,3.59322]
[1727284891097,1.49411074,2594.8,2594.7,8.88852]
[1727284891502,1.99206331,2594.9,2594.8,0.3854]
[1727284891709,2.18489225,2594.9,2594.8,0.3854]
[1727284892708,6.03849225,2594.9,2594.4,3.2078]
[1727284893012,6.03849225,2594.9,2594.4,3.59326]
[1727284893013,0.38543,2594.6,2594.4,3.59326]
[1727284893608,2.95429926,2594.7,2594.0,4.6931]
[1727284893795,0.38547,2594.4,2594.2,0.38548]
[1727284893998,2.45827926,2594.6,2594.2,0.38548]
[1727284893999,1.88013926,2594.6,2594.2,0.38548]
[1727284894205,0.38545,2594.5,2594.2,0.38548]
[1727284894602,1.49469926,2594.6,2594.0,3.2078]
[1727284894803,1.49469926,2594.6,2594.4,0.38546]
[1727284895406,6.16209926,2594.7,2594.1,0.96377]
[1727284895601,1.49469926,2594.8,2594.7,0.38542]
[1727284895795,1.49469926,2594.9,2594.8,0.3854]
[1727284895998,1.49469926,2594.9,2594.7,0.38541]
[1727284896206,1.49469926,2594.9,2594.8,0.3854]
[1727284896905,1.49469926,2594.9,2594.4,4.7022]
[1727284896906,1.49469926,2595.0,2594.9,0.38539]
[1727284897608,2.94849926,2595.2,2594.8,0.96351]
[1727284897813,2.94849926,2595.2,2595.1,0.38536]
[1727284898410,1.49469926,2595.3,2595.2,0.38534]
[1727284898612,1.49469926,2595.4,2595.3,0.38533]
[1727284899101,1.49469926,2595.5,2595.4,0.38531]
[1727284899305,0.19279144,2595.5,2595.4,0.38531]
[1727284899814,1.49530016,2595.6,2595.5,0.3853]
[1727284900004,1.87383061,2595.6,2595.5,0.3853]
[1727284900400,1.87372439,2595.6,2595.5,0.96325]
[1727284900600,1.99393926,2595.6,2595.1,1.3885]
[1727284900800,1.49535743,2595.2,2595.1,1.77386]
[1727284901212,1.49535743,2595.2,2595.1,5.62746]
[1727284901514,1.49535743,2595.2,2595.1,12.59086]
[1727284901813,1.99390459,2595.4,2595.2,0.38534]
[1727284901814,1.49535743,2595.3,2595.2,0.38534]
[1727284902112,1.49535743,2595.3,2595.2,1.3487]
[1727284902310,1.49535743,2595.3,2595.2,11.2015]
[1727284902511,1.49535743,2595.4,2595.3,1.34865]
[1727284902707,1.49535743,2595.4,2595.3,6.82837]
[1727284902916,1.49535743,2595.5,2595.4,1.3486]
[1727284903113,1.99390459,2595.6,2595.5,1.34855]
[1727284903114,1.49535743,2595.6,2595.5,1.34855]
[1727284903309,1.49535743,2595.6,2595.5,6.1646]
[1727284903518,2.18666298,2595.8,2595.6,1.34849]
[1727284903519,1.49535743,2595.7,2595.6,1.34849]
[1727284903709,1.99390459,2595.8,2595.6,0.38528]
[1727284903710,2.37916459,2595.8,2595.6,0.38528]
[1727284903913,2.37916459,2595.8,2595.5,1.423]
[1727284903914,0.57802636,2595.7,2595.5,1.80829]
[1727284904214,2.57195957,2595.6,2595.5,1.423]
[1727284904714,2.57195957,2595.6,2595.5,1.8083]
[1727284904921,2.57196403,2595.6,2595.5,1.423]
[1727284905608,2.56934864,2595.6,2595.5,1.8083]
[1727284906018,2.18411941,2595.6,2595.5,1.423]
[1727284906208,2.56939941,2595.6,2595.5,1.8083]
[1727284906409,2.18411941,2595.6,2595.5,1.8083]
[1727284906619,1.474,2595.9,2595.6,0.38528]
[1727284906620,1.99133997,2595.7,2595.6,0.38528]
[1727284906814,3.96623346,2595.9,2595.7,0.38527]
[1727284906815,2.1840992,2595.8,2595.7,0.38527]
[1727284907115,3.96623346,2595.9,2595.7,0.38527]
[1727284907116,1.49288541,2595.9,2595.8,0.38525]
[1727284907313,1.49288541,2595.9,2595.8,4.23725]
[1727284907510,2.37656997,2596.0,2595.9,0.38524]
[1727284907715,0.19276158,2596.0,2595.8,0.38524]
[1727284907918,0.38523,2596.0,2595.8,0.38524]
[1727284908117,1.49306234,2596.2,2595.9,0.38523]
[1727284908315,0.38523,2596.0,2595.8,0.38524]
[1727284908618,1.49306234,2596.2,2595.8,0.38524]
[1727284908819,0.38522,2596.1,2595.9,0.38523]
[1727284909120,0.3853,2595.5,2595.4,3.2078]
[1727284909320,3.2078,2596.0,2595.4,3.2078]
[1727284909321,0.38529,2595.6,2595.4,3.2078]
[1727284909621,0.38529,2595.6,2595.4,3.5931]
[1727284909923,0.38528,2595.7,2595.5,0.3853]
[1727284910122,0.38527,2595.7,2595.5,0.3853]
[1727284910420,0.38527,2595.7,2595.6,0.38528]
[1727284910717,0.38526,2595.8,2595.6,0.38527]
[1727284911314,0.38527,2595.7,2595.5,0.38529]
[1727284911616,0.38526,2595.8,2595.6,0.38528]
[1727284912115,2.93406234,2595.9,2595.4,3.2078]
[1727284912322,0.38529,2595.6,2595.4,3.2078]
[1727284912616,0.38526,2595.8,2595.6,0.38527]
[1727284912810,3.31931234,2595.9,2595.7,0.38527]
[1727284913019,2.93406234,2595.9,2595.8,0.38525]
[1727284913216,1.441,2595.9,2595.8,0.38525]
[1727284913721,1.87827234,2596.1,2595.9,0.38524]
[1727284914113,1.87827234,2596.1,2595.4,7.51106]
[1727284914114,1.87826234,2596.2,2596.0,0.38522]
[1727284914315,0.38521,2596.1,2595.9,0.38523]
[1727284914517,1.87826234,2596.2,2596.0,0.38522]
[1727284914713,1.49306234,2596.2,2596.1,0.38521]
[1727284914915,4.7207,2596.3,2596.2,0.38519]
[1727284915219,1.5129,2596.3,2596.2,0.38519]
[1727284916911,1.5129,2596.3,2595.8,2.51492]
[1727284917120,1.89808,2596.3,2596.1,0.38521]
[1727284917819,1.89808,2596.3,2595.8,1.5518]
[1727284917820,1.5129,2596.3,2595.9,0.38523]
[1727284918027,3.00596234,2596.3,2595.8,1.5518]
[1727284918220,1.89809,2596.3,2596.0,0.38521]
[1727284918522,0.3852,2596.2,2596.0,0.38521]
[1727284918827,0.3852,2596.2,2595.9,0.38523]
[1727284919613,0.3852,2596.2,2596.0,0.38521]
[1727284919826,3.00596234,2596.3,2595.4,1.5062]
[1727284919827,6.21376234,2596.3,2595.4,1.5062]
[1727284920125,6.21376234,2596.3,2595.6,0.38528]
[1727284920126,0.38526,2595.8,2595.6,0.38528]
[1727284920634,0.38527,2595.7,2595.5,0.38529]
[1727284920920,0.38529,2595.6,2595.3,4.57131]
[1727284921123,1.5152,2595.6,2595.4,0.38531]
[1727284921314,1.5152,2595.6,2595.2,3.2078]
[1727284921511,0.3853,2595.5,2595.2,3.2078]
[1727284921729,1.90049,2595.6,2595.4,0.38531]
[1727284922220,1.5152,2595.6,2595.5,0.3853]
[1727284922420,1.90048,2595.6,2595.4,0.38531]
[1727284922622,1.5152,2595.6,2595.5,0.3853]
[1727284922924,1.90048,2595.6,2595.4,0.3853]
[1727284923123,2.18161851,2595.5,2595.4,0.3853]
[1727284924726,1.98883888,2595.5,2595.4,7.5781]
[1727284924919,0.19277963,2595.6,2595.4,14.15609]
[1727284924920,3.48052403,2595.6,2595.4,14.15609]
[1727284925114,1.49168515,2595.6,2595.5,8.40915]
[1727284925320,1.98883888,2595.8,2595.7,1.34844]
[1727284925321,0.68639515,2595.8,2595.7,1.34844]
[1727284925524,1.98883888,2596.1,2595.8,0.96312]
[1727284925724,2.18156687,2596.1,2596.0,4.55608]
[1727284926019,2.49223346,2596.3,2596.0,5.71052046]
[1727284926020,1.98883888,2596.3,2596.0,5.71052046]
[1727284926224,1.98883888,2596.3,2596.2,0.38519]
[1727284926225,2.18155119,2596.3,2596.2,0.38519]
[1727284926812,0.19271189,2596.3,2596.2,0.38519]
[1727284927528,2.18155077,2596.3,2596.2,0.38519]
[1727284927821,0.19271189,2596.3,2596.2,0.38519]
[1727284928526,1.98883888,2596.4,2596.1,1.4618]
[1727284928718,1.98883888,2596.4,2596.3,0.38518]
[1727284929825,0.19270318,2596.5,2596.1,1.4618]
[1727284929826,1.98883888,2596.5,2596.4,0.38516]
[1727284930023,0.38513,2596.7,2596.1,1.4618]
[1727284930537,0.38513,2596.7,2596.5,0.38515]
[1727284930724,0.38513,2596.7,2596.4,0.38515]
[1727284930926,6.2206,2596.8,2596.1,1.4618]
[1727284931229,0.38518,2596.3,2596.1,0.3852]
[1727284931829,0.38518,2596.3,2596.2,0.38519]
[1727284932137,0.38518,2596.3,2596.1,0.3852]
[1727284932429,0.38517,2596.4,2596.2,0.38519]
[1727284932623,3.2078,2596.5,2596.2,0.38519]
[1727284932824,0.38518,2596.3,2596.1,0.38521]
[1727284933228,0.38518,2596.3,2596.0,3.26452046]
[1727284933525,3.2078,2596.5,2596.0,3.26452046]
[1727284933721,0.38518,2596.3,2596.2,0.38519]
[1727284934026,1.98833018,2596.7,2596.4,0.38515]
[1727284934226,0.38515,2596.5,2596.4,0.38515]
[1727284934434,0.38514,2596.6,2596.4,0.38515]
[1727284934825,0.38514,2596.6,2596.5,0.38515]
[1727284935033,2.56617709,2596.6,2596.5,0.38515]
[1727284935219,2.56616709,2596.6,2596.5,0.38515]
[1727284935719,2.18103709,2596.6,2596.5,0.38515]
[1727284936322,0.19270691,2596.6,2596.5,0.38515]
[1727284936526,0.19270691,2596.6,2596.1,0.96301]
[1727284936527,1.98833018,2596.7,2596.6,0.38513]
[1727284936730,2.18103278,2596.7,2596.6,0.38513]
[1727284937127,1.85003714,2596.7,2596.5,0.96288]
[1727284937329,1.85003714,2596.7,2596.6,0.38513]
[1727284939734,1.85003714,2596.7,2596.3,1.4464]
[1727284939932,1.85003714,2596.7,2596.3,1.83158]
[1727284939933,2.48966561,2596.4,2596.3,1.83158]
[1727284940128,4.14700015,2596.4,2596.3,1.83158]
[1727284940330,4.14700015,2596.4,2596.3,5.68278]
[1727284941022,4.14468824,2596.4,2596.3,5.68278]
[1727284941219,4.33893498,2596.4,2596.3,5.68278]
[1727284941423,2.49120661,2596.4,2596.3,5.2976]
[1727284941622,4.14690804,2596.4,2596.3,10.81648]
[1727284942019,0.19269546,2596.4,2596.3,10.81648]
[1727284942223,2.49120661,2596.5,2596.4,0.38516]
[1727284942424,1.84876606,2596.5,2596.3,4.6542]
[1727284942633,4.34053276,2596.4,2596.3,5.03938]
[1727284943028,4.14783909,2596.4,2596.3,8.89058]
[1727284943233,1.84920405,2596.4,2596.3,8.5054]
[1727284943428,2.98970327,2596.6,2596.5,0.38515]
[1727284943636,3.87234794,2596.8,2596.6,0.38513]
[1727284943637,2.98970327,2596.7,2596.6,0.38513]
[1727284943832,4.64611153,2596.7,2596.6,0.38513]
[1727284944026,2.98970327,2596.7,2596.6,0.38513]
[1727284944844,7.48905923,2596.7,2596.6,0.38513]
[1727284945229,4.34213334,2596.7,2596.6,0.38513]
[1727284945728,4.34256453,2596.7,2596.6,0.38513]
[1727284947136,4.53499258,2596.7,2596.6,0.38513]
[1727284947431,0.38514,2596.6,2596.5,0.38514]
[1727284947733,6.26378675,2596.6,2596.5,0.38514]
[1727284948326,5.87864675,2596.6,2596.5,0.38514]
[1727284948534,6.26377675,2596.6,2596.5,0.38514]
[1727284949138,5.87854133,2596.6,2596.5,0.38514]
[1727284949432,1.84953394,2596.6,2596.5,1.34802]
[1727284949640,2.49290739,2596.7,2596.6,0.38513]
[1727284951127,4.34241577,2596.7,2596.6,0.38513]
[1727284951524,1.84950838,2596.7,2596.6,0.38513]
[1727284951731,4.34241577,2596.7,2596.6,0.38513]
[1727284952132,7.98782977,2596.7,2596.5,1.99095974]
[1727284952326,7.49202649,2596.6,2596.5,2.37610974]
[1727284952637,4.84094304,2596.6,2596.5,2.37610974]
[1727284952827,4.84094304,2596.6,2596.5,6.22730974]
[1727284952828,4.64825939,2596.6,2596.5,6.22730974]
[1727284953027,4.64825939,2596.6,2596.5,0.38515]
[1727284953028,2.99143466,2596.6,2596.5,0.38515]
[1727284953230,6.2199198,2596.6,2596.5,0.38515]
[1727284953535,4.88530987,2596.6,2596.5,0.38515]
[1727284953933,0.38516,2596.5,2596.4,0.38515]
[1727284954235,0.38516,2596.5,2596.0,4.6278]
[1727284954236,8.94786622,2596.5,2596.0,4.6278]
[1727284954534,2.99123256,2596.3,2596.0,4.6278]
[1727284954736,7.83868943,2596.3,2596.2,0.38519]
[1727284954939,7.83867684,2596.3,2596.2,0.38519]
[1727284955643,4.84761499,2596.3,2596.2,0.38519]
[1727284956937,7.8369926,2596.3,2596.2,0.38519]
[1727284957244,7.94967293,2596.3,2596.2,0.38519]
[1727284957536,4.46243499,2596.3,2596.2,0.38519]
[1727284958641,7.94967293,2596.3,2596.2,0.38519]
[1727284958939,4.46243499,2596.3,2596.2,0.38519]
[1727284959133,7.94967293,2596.3,2596.2,0.38519]
[1727284959734,7.94967293,2596.3,2596.2,1.34818]
[1727284959735,7.45421646,2596.3,2596.2,1.34818]
[1727284959934,7.45456707,2596.3,2596.2,1.34818]
[1727284960240,3.47409012,2596.5,2596.4,0.38516]
[1727284960443,3.66679205,2596.5,2596.4,0.38516]
[1727284961330,2.18739205,2596.5,2596.4,0.38516]
[1727284961730,2.18739205,2596.6,2596.5,0.38515]
[1727284962035,0.19269703,2596.6,2596.5,0.38515]
[1727284962229,1.99484392,2596.6,2596.5,0.38515]
[1727284962445,2.87848265,2596.7,2596.6,0.38513]
[1727284962645,4.77733623,2596.7,2596.6,0.38513]
[1727284962836,0.38513,2596.6,2596.5,3.09514]
[1727284963141,2.18752467,2596.6,2596.5,3.09514]
[1727284963642,0.19269563,2596.6,2596.5,3.09514]
[1727284963836,1.99482904,2596.7,2596.6,0.38513]
[1727284964042,2.18751445,2596.7,2596.6,0.38513]
[1727284964245,2.37991904,2596.9,2596.8,0.3851]
[1727284964432,2.18750732,2596.9,2596.8,3.0951]
[1727284965131,0.19267828,2596.9,2596.8,3.0951]
[1727284965335,2.18750732,2596.9,2596.8,3.0951]
[1727284965536,0.19266979,2596.9,2596.8,3.0951]
[1727284965742,0.57775979,2596.9,2596.8,3.0951]
[1727284965943,0.3851,2596.8,2596.7,2.71]
[1727284966139,2.57266704,2596.8,2596.7,2.71]
[1727284967349,2.22058952,2596.8,2596.7,2.71]
[1727284967544,2.22058952,2596.8,2596.5,0.38514]
[1727284967545,0.38513,2596.6,2596.5,0.38514]
[1727284967842,0.38513,2596.6,2596.5,0.38515]
[1727284967843,2.22062952,2596.6,2596.5,0.38515]
[1727284968054,1.83548952,2596.6,2596.3,2.71]
[1727284968349,2.49312859,2596.4,2596.3,3.09518]
[1727284968533,4.32861811,2596.4,2596.3,3.09518]
[1727284969344,1.83548952,2596.4,2596.3,3.09518]
[1727284970539,0.38515,2596.5,2596.4,0.38515]
[1727284970855,2.22303954,2596.5,2596.4,0.38515]
[1727284971240,5.21507472,2596.5,2596.4,0.38515]
[1727284971940,3.37718518,2596.5,2596.4,0.38515]
[1727284972144,7.84886394,2596.5,2596.4,0.38515]
[1727284972742,4.83050262,2596.5,2596.4,0.38515]
[1727284973449,2.22366709,2596.5,2596.4,0.38515]
[1727284974147,5.21570227,2596.5,2596.4,0.38515]
[1727284974748,4.83055227,2596.5,2596.4,0.38515]
[1727284975341,1.83851709,2596.5,2596.4,0.38515]
[1727284976241,2.22366709,2596.5,2596.4,0.38515]
[1727284976445,5.21570227,2596.5,2596.4,0.38515]
[1727284977045,3.37718518,2596.5,2596.4,0.38515]
[1727284977248,7.46385801,2596.5,2596.4,0.38515]
[1727284977444,3.37718518,2596.5,2596.4,0.38515]
[1727284977750,7.84900801,2596.5,2596.4,0.38515]
[1727284978244,5.21570227,2596.5,2596.4,0.38515]
[1727284978444,2.99203518,2596.5,2596.4,0.38515]
[1727284978947,7.46458282,2596.5,2596.4,0.38515]
[1727284979247,4.33759544,2596.5,2596.4,6.74726]
[1727284979555,4.33759544,2596.5,2596.4,0.38516]
[1727284979757,0.38514,2596.6,2596.3,4.5548]
[1727284979947,0.9628,2596.7,2596.3,3.2078]
[1727284980150,0.38515,2596.5,2596.3,3.59298]
[1727284980351,0.38515,2596.5,2596.3,3.2078]
[1727284980546,1.5644,2596.4,2596.3,3.59298]
[1727284982354,6.658,2596.9,2596.3,7.44418]
[1727284982549,8.1874,2596.9,2596.7,3.01]
[1727284982745,7.8023,2596.9,2596.7,3.39512]
[1727284982944,4.5945,2596.9,2596.7,3.01]
[1727284983152,2.9979,2596.9,2596.8,3.3951]
[1727284984848,2.9979,2596.9,2596.8,0.3851]
[1727284985255,0.3851,2596.8,2596.6,3.59293]
[1727284985554,0.3851,2596.8,2596.6,3.2078]
[1727284985753,2.9979,2596.9,2596.6,3.2078]
[1727284985754,0.38512,2596.7,2596.6,3.2078]
[1727284985953,1.84852,2596.7,2596.6,3.2078]
[1727284986451,0.38517,2596.4,2596.3,3.2078]
[1727284986648,0.38515,2596.5,2596.3,3.59297]
[1727284986851,0.38514,2596.6,2596.4,0.38516]
[1727284987155,0.38515,2596.5,2596.3,3.59297]
[1727284987355,2.42622,2596.7,2596.3,3.2078]
[1727284987552,0.38515,2596.5,2596.3,3.59297]
[1727284987750,0.38514,2596.6,2596.4,0.38515]
[1727284988451,3.383,2596.9,2596.7,0.38512]
[1727284988757,0.38513,2596.7,2596.5,3.39514]
[1727284989452,0.38513,2596.7,2596.6,0.38513]
[1727284989653,0.38513,2596.7,2596.5,3.39514]
[1727284989853,3.59291,2596.8,2596.6,0.38513]
[1727284990048,0.38512,2596.7,2596.6,0.38513]
[1727284990757,1.8322001,2596.7,2596.5,3.01]
[1727284990958,3.59291,2596.8,2596.6,0.38512]
[1727284991154,1.83223813,2596.7,2596.5,3.01]
[1727284991351,3.66848961,2596.7,2596.2,3.01]
[1727284991558,1.99959221,2596.3,2596.2,0.38519]
[1727284991851,1.99959221,2596.3,2596.2,3.39519]
[1727284992750,1.99959221,2596.3,2596.2,4.35818]
[1727284992954,2.1922905,2596.3,2596.2,8.21018]
[1727284993149,2.1922905,2596.3,2596.2,3.39519]
[1727284993458,2.49949026,2596.4,2596.3,0.38518]
[1727284994554,4.33199853,2596.4,2596.3,0.38518]
[1727284994753,2.49949026,2596.4,2596.3,0.38518]
[1727284996763,4.33187908,2596.4,2596.3,0.38518]
[1727284997161,2.49949026,2596.4,2596.3,0.38518]
[1727284997758,4.33200184,2596.4,2596.3,0.38518]
[1727284997959,4.71716184,2596.4,2596.3,0.38518]
[1727284998155,3.42371158,2596.4,2596.3,0.38518]
[1727284998670,4.45623799,2596.4,2596.3,0.38518]
[1727285003269,0.38514,2596.6,2596.5,0.38515]
[1727285003864,0.38514,2596.6,2596.4,0.38515]
[1727285004464,0.38514,2596.6,2596.5,0.38515]
[1727285004866,0.38514,2596.6,2596.4,0.38515]
[1727285005365,0.38514,2596.6,2596.5,0.38515]
[1727285005567,0.38514,2596.6,2596.4,0.38515]
[1727285006066,0.38514,2596.6,2596.5,0.38515]
[1727285006268,1.5912,2596.7,2596.5,0.38515]
[1727285006469,0.38513,2596.6,2596.5,0.38515]
[1727285006768,1.97633,2596.7,2596.6,0.38513]
[1727285006970,1.5912,2596.7,2596.6,0.38513]
[1727285007188,1.97632,2596.7,2596.6,0.38513]
[1727285007471,5.4424,2596.7,2596.6,0.38513]
[1727285007865,3.2078,2596.8,2596.6,0.38513]
[1727285008063,3.2078,2596.8,2596.7,3.39512]
[1727285008259,3.5929,2596.8,2596.7,3.39512]
[1727285008470,0.38513,2596.7,2596.4,3.01]
[1727285008672,0.38513,2596.7,2596.6,0.38513]
[1727285009770,3.59292,2596.8,2596.7,0.38512]
[1727285009972,3.2078,2596.8,2596.7,0.38512]
[1727285010373,3.2078,2596.8,2596.7,3.39512]
[1727285011072,3.5929,2596.8,2596.7,0.38512]
[1727285011272,3.2078,2596.8,2596.7,0.38512]
[1727285011871,3.2078,2596.8,2596.7,3.39512]
[1727285012372,3.2078,2596.8,2596.7,4.89982]
[1727285013770,1.91297,2597.1,2596.7,4.5147]
[1727285013971,3.2078,2597.1,2596.9,3.01]
[1727285014268,1.4714,2597.4,2596.9,3.01]
[1727285014473,3.2078,2597.3,2597.2,0.38504]
[1727285014867,3.59283,2597.3,2597.2,0.38504]
[1727285015068,0.38504,2597.2,2597.1,0.38505]
[1727285015471,3.59284,2597.3,2597.2,0.38504]
[1727285016073,3.2078,2597.3,2597.2,0.38504]
[1727285016274,3.2078,2597.3,2596.9,3.01]
[1727285016777,0.38506,2597.2,2597.0,0.38507]
[1727285016968,0.38506,2597.2,2597.0,0.38506]
[1727285017168,3.59284,2597.3,2597.1,0.38506]
[1727285017875,3.59284,2597.3,2596.9,3.01]
[1727285018075,3.59284,2597.3,2597.2,0.38504]
[1727285018979,3.2078,2597.3,2597.2,0.38504]
[1727285021174,0.3851,2596.8,2596.7,1.5047]
[1727285021476,3.2078,2596.8,2596.2,1.518]
[1727285021679,3.2078,2596.8,2596.3,3.97295]
[1727285021680,3.0243,2596.7,2596.3,3.97295]
[1727285021872,3.0243,2596.7,2596.6,0.38513]
[1727285022268,4.719,2597.1,2596.6,3.01]
[1727285022475,0.38507,2597.0,2596.9,3.01]
[1727285022678,0.38507,2597.0,2596.7,1.5895]
[1727285023379,0.38509,2596.9,2596.7,1.5895]
[1727285023581,0.38509,2596.9,2596.5,3.01]
[1727285023783,5.0969,2596.8,2596.5,3.01]
[1727285023976,4.7118,2596.8,2596.7,0.38512]
[1727285024175,1.504,2596.8,2596.7,0.38512]
[1727285026283,1.8891,2596.8,2596.7,0.38512]
[1727285026484,1.504,2596.8,2596.7,0.38512]
[1727285027386,4.7118,2596.8,2596.7,0.38512]
[1727285027679,5.09691,2596.8,2596.7,0.38512]
[1727285027880,9.52578,2596.8,2596.4,0.38515]
[1727285028091,0.38514,2596.6,2596.5,0.38515]
[1727285028382,0.38514,2596.6,2596.4,0.38515]
[1727285029182,0.38514,2596.6,2596.5,0.38515]
[1727285029378,0.38514,2596.6,2596.2,6.2178]
[1727285029581,0.38514,2596.6,2596.5,0.38515]
[1727285029782,1.61,2596.7,2596.6,0.38513]
[1727285031279,5.0969,2596.8,2596.7,0.38512]
[1727285032280,4.7118,2596.8,2596.5,1.4721]
[1727285032484,0.38512,2596.7,2596.6,0.38513]
[1727285033284,5.09692,2596.8,2596.6,0.38513]
[1727285033478,5.09692,2596.8,2596.2,4.68]
[1727285033479,3.8512,2596.7,2596.2,4.68]
[1727285033687,0.38516,2596.5,2596.4,0.38516]
[1727285035392,0.38516,2596.4,2596.3,0.38517]
[1727285035608,0.38516,2596.4,2596.2,4.68]
[1727285035609,0.96282,2596.7,2596.2,4.68]
[1727285035799,0.38516,2596.5,2596.4,0.38516]
[1727285036594,6.3149,2596.8,2596.3,3.01]
[1727285036788,0.38513,2596.7,2596.6,0.38513]
[1727285036989,0.38513,2596.7,2596.3,3.01]
[1727285036990,6.70001,2596.8,2596.7,0.38512]
[1727285037197,4.7118,2596.8,2596.7,0.38512]
[1727285037694,8.563,2596.8,2596.7,0.38512]
[1727285038595,8.9481,2596.8,2596.7,0.38512]
[1727285039198,5.0969,2596.8,2596.7,0.38512]
[1727285040398,0.38516,2596.5,2596.4,0.38515]
[1727285040598,0.38517,2596.4,2596.3,0.38516]
[1727285041092,0.38517,2596.4,2595.8,1.5504]
[1727285041093,11.4548,2596.4,2595.3,4.31504347]
[1727285041298,3.59303,2596.0,2595.8,0.38524]
[1727285041499,0.38524,2595.9,2595.6,1.5189]
[1727285041693,4.7321,2596.3,2595.8,3.01]
[1727285041895,5.11729,2596.3,2596.0,3.01]
[1727285042190,5.11729,2596.3,2596.1,0.3852]
[1727285042589,0.3852,2596.2,2596.1,0.3852]
[1727285042791,5.11728,2596.3,2596.2,0.38519]
[1727285043283,4.7321,2596.3,2596.2,0.38519]
[1727285043687,4.7321,2596.3,2596.2,3.39519]
[1727285043990,3.2078,2596.3,2596.2,3.39519]
[1727285044805,1.631916,2596.3,2596.2,3.39519]
[1727285045187,1.98877,2596.4,2596.3,0.38518]
[1727285045394,3.42833283,2596.4,2596.1,1.5572]
[1727285045598,2.49412232,2596.2,2596.1,1.5572]
[1727285045906,4.12613571,2596.2,2596.1,1.5572]
[1727285046396,4.12613571,2596.2,2596.1,1.94241]
[1727285046598,7.91184515,2596.2,2596.1,0.38521]
[1727285046895,7.91184515,2596.2,2595.8,3.2078]
[1727285046896,8.94787654,2596.2,2595.8,3.2078]
[1727285047103,2.38029054,2595.9,2595.8,3.2078]
[1727285047300,0.57795944,2595.9,2595.8,3.2078]
[1727285047499,2.38029841,2595.9,2595.8,3.2078]
[1727285047689,2.57301785,2595.9,2595.8,3.2078]
[1727285047895,2.18777785,2595.9,2595.8,3.59305]
[1727285048899,0.19273998,2595.9,2595.8,6.60305]
[1727285049104,1.99505841,2596.0,2595.9,0.38524]
[1727285049293,2.18779375,2596.0,2595.9,0.38524]
[1727285050499,2.18779375,2596.0,2595.8,6.2178]
[1727285050500,1.38239155,2596.1,2596.0,0.38522]
[1727285051401,0.99718155,2596.1,2596.0,0.38522]
[1727285051601,1.38239155,2596.1,2596.0,0.38522]
[1727285052101,1.88098232,2596.1,2596.0,0.38522]
[1727285052502,1.49577232,2596.1,2596.0,0.38522]
[1727285052698,1.49577232,2596.1,2596.0,3.39522]